bitfinex-derivatives/quotes_ETHF0:USTF0_20260117
["timestamp","ask_amount","ask_price","bid_price","bid_amount"]
[1768643566035,0.25001596,3303.4,3302.5,0.97904225]
[1768643566242,4.724,3303.7,3302.5,0.97904225]
[1768643566544,1.09739851,3303.6,3302.5,0.97904225]
[1768643566839,1.09739851,3303.5,3302.5,0.97904225]
[1768643567040,0.25001067,3303.4,3302.5,0.97904225]
[1768643567241,4.724,3303.7,3302.5,0.97904225]
[1768643567441,1.0973765,3303.6,3302.5,0.97904225]
[1768643567642,1.0973765,3303.5,3302.5,0.97904225]
[1768643567844,0.25000565,3303.4,3302.5,0.97904225]
[1768643568146,4.724,3303.7,3302.5,0.97904225]
[1768643568332,1.09735903,3303.6,3302.5,0.97904225]
[1768643568530,1.09735903,3303.5,3302.5,0.97904225]
[1768643568737,0.2500017,3303.4,3302.5,0.97904225]
[1768643568940,4.724,3303.7,3302.5,0.97904225]
[1768643569141,1.09735873,3303.6,3302.5,0.97904225]
[1768643569344,1.09735873,3303.5,3302.5,0.97904225]
[1768643569548,0.25000162,3303.4,3302.5,0.97904225]
[1768643569747,4.724,3303.7,3302.5,0.97904225]
[1768643570046,1.09734507,3303.6,3302.5,0.97904225]
[1768643570247,1.09734507,3303.5,3302.5,0.97904225]
[1768643570445,0.24999852,3303.4,3302.5,0.97904225]
[1768643570645,4.724,3303.7,3302.5,0.97904225]
[1768643570943,1.09733494,3303.6,3302.5,0.97904225]
[1768643571144,1.09733494,3303.5,3302.5,0.97904225]
[1768643571345,0.24999622,3303.4,3302.5,0.97904225]
[1768643571545,4.724,3303.7,3302.5,0.97904225]
[1768643571744,1.0973291,3303.6,3302.5,0.97904225]
[1768643571950,1.0973291,3303.5,3302.5,0.97904225]
[1768643572142,0.24999491,3303.4,3302.5,0.97904225]
[1768643572342,4.724,3303.7,3302.5,0.97904225]
[1768643572535,1.09732686,3303.6,3302.4,0.97904225]
[1768643572738,1.09732686,3303.5,3302.4,0.97904225]
[1768643572939,0.24999441,3303.4,3302.4,0.97904225]
[1768643573136,4.724,3303.7,3302.4,0.97904225]
[1768643573351,1.09732915,3303.6,3302.4,0.97904225]
[1768643573536,1.09732915,3303.5,3302.4,0.97904225]
[1768643573736,0.24999497,3303.4,3302.4,0.97904225]
[1768643573938,5.70304225,3303.7,3302.4,0.97904225]
[1768643574144,1.09732915,3303.6,3302.4,0.97904225]
[1768643574452,1.09732915,3303.5,3302.4,0.97904225]
[1768643574651,0.24999497,3303.4,3302.4,0.97904225]
[1768643574949,1.695,3303.3,3302.4,0.97904225]
[1768643575653,1.695,3303.3,3302.2,0.52654174]
[1768643575849,1.695,3303.3,3302.4,0.97904225]
[1768643581054,1.695,3303.3,3302.0,2.85366769]
[1768643581253,1.695,3303.3,3302.3,0.97904225]
[1768643584059,1.695,3303.3,3302.0,2.85366769]
[1768643584361,1.695,3303.3,3302.2,0.97904225]
[1768643586059,1.695,3303.3,3302.0,2.85366769]
[1768643586259,1.695,3303.3,3302.2,0.97904225]
[1768643587454,1.695,3303.3,3302.0,2.85366769]
[1768643593666,1.695,3303.3,3302.0,0.15147]
[1768643595558,1.695,3303.3,3301.9,2.70219769]
[1768643595765,0.50296938,3303.1,3301.9,2.70219769]
[1768643595965,0.50296938,3303.1,3301.8,0.00275288]
[1768643602365,1.34251142,3303.0,3301.8,0.00275288]
[1768643602566,0.49583816,3303.0,3301.8,0.00275288]
[1768643625379,0.48638887,3302.9,3301.8,0.00275288]
[1768643643494,1.36426735,3302.8,3301.8,0.00275288]
[1768643643790,0.84819617,3302.7,3301.8,0.00275288]
[1768643643992,0.51607118,3302.7,3301.8,0.00275288]
[1768643657992,0.51607118,3302.7,3301.8,0.98181331]
[1768643668900,0.51607118,3302.7,3301.8,0.00275288]
[1768643702338,0.512474,3303.4,3302.1,0.97906043]
[1768643702536,0.512474,3303.2,3302.1,0.97906043]
[1768643702832,3.05769804,3303.1,3302.1,0.97906043]
[1768643703033,0.512474,3303.0,3302.1,0.97906043]
[1768643709345,0.512474,3303.0,3301.8,0.00275288]
[1768643716744,0.512474,3303.0,3301.8,2.70495057]
[1768643721555,0.512474,3303.0,3301.8,0.00275288]
[1768643723641,0.512474,3303.0,3301.8,2.70495057]
[1768643733362,0.512474,3303.0,3301.8,0.00275288]
[1768643743573,0.512474,3303.0,3301.8,2.70495057]
[1768643753376,0.50858552,3304.3,3302.4,0.15145]
[1768643753576,0.50858552,3303.9,3302.3,2.70219769]
[1768643753776,0.50858552,3303.7,3302.2,40.8]
[1768643753982,0.50858552,3303.5,3302.2,40.8]
[1768643754176,1.36061744,3303.4,3302.2,40.8]
[1768643754367,0.50858552,3303.4,3302.2,40.8]
[1768643754572,0.50858552,3303.4,3301.8,0.68044482]
[1768643755083,0.50858552,3303.4,3301.9,40.8]
[1768643761884,0.50858552,3303.4,3301.9,41.32621194]
[1768643769290,0.50858552,3303.4,3302.4,0.97865785]
[1768643772187,0.86190716,3303.3,3302.4,0.97865785]
[1768643772389,0.50858552,3303.4,3302.4,0.97865785]
[1768643772591,0.86192079,3303.3,3302.4,0.97865785]
[1768643772787,0.50858552,3303.4,3302.4,0.97865785]
[1768643772987,0.86192079,3303.3,3302.1,0.97865785]
[1768643773187,0.50858552,3303.4,3302.1,0.97865785]
[1768643773384,0.50858552,3303.4,3301.8,1.13289073]
[1768643773385,0.50858552,3303.2,3301.8,1.13289073]
[1768643773585,0.50858552,3303.2,3302.1,0.97865785]
[1768643777984,0.50858552,3303.2,3301.8,0.15423288]
[1768643778184,0.50858552,3303.2,3302.1,0.97865785]
[1768643779290,0.50858552,3303.2,3301.8,0.15423288]
[1768643779489,0.50858552,3303.2,3302.1,0.97865785]
[1768643783400,0.86179583,3303.1,3302.1,0.97865785]
[1768643783602,0.86179583,3303.0,3302.1,0.97865785]
[1768643783798,0.50858552,3303.2,3302.1,0.97865785]
[1768643783997,0.8617958,3303.1,3302.1,0.97865785]
[1768643784199,0.8617958,3303.0,3302.1,0.97865785]
[1768643784498,0.50858552,3303.2,3302.1,0.97865785]
[1768643784700,0.8617703,3303.1,3302.1,0.97865785]
[1768643784896,0.8617703,3303.0,3302.1,0.97865785]
[1768643785110,0.50858552,3303.2,3302.1,0.97865785]
[1768643785308,0.86175791,3303.1,3302.1,0.97865785]
[1768643785515,0.86175791,3303.0,3302.1,0.97865785]
[1768643785718,0.50858552,3303.2,3302.1,0.97865785]
[1768643785911,0.86174579,3303.1,3302.1,0.97865785]
[1768643786112,0.86174579,3303.0,3302.1,0.97865785]
[1768643786410,0.50858552,3303.2,3301.8,0.15423288]
[1768643786606,0.86182706,3303.1,3302.1,0.97865785]
[1768643786810,0.86182706,3303.0,3302.1,0.97865785]
[1768643787012,0.50858552,3303.2,3302.1,0.97865785]
[1768643787214,0.86182706,3303.1,3302.1,0.97865785]
[1768643787514,0.86182706,3303.0,3302.1,0.97865785]
[1768643787814,0.50858552,3303.2,3302.1,0.97865785]
[1768643788016,0.86182528,3303.1,3302.1,0.97865785]
[1768643788218,0.86182528,3303.0,3302.1,0.97865785]
[1768643788410,0.50858552,3303.2,3302.1,0.97865785]
[1768643788614,0.86182844,3303.1,3302.1,0.97865785]
[1768643788808,0.86182844,3303.0,3302.1,0.97865785]
[1768643789011,0.50858552,3303.2,3302.1,0.97865785]
[1768643789210,0.86182844,3303.1,3302.1,0.97865785]
[1768643789409,0.86182844,3303.0,3302.1,0.97865785]
[1768643789608,0.50858552,3303.2,3302.1,0.97865785]
[1768643789909,0.86183667,3303.1,3302.1,0.97865785]
[1768643790109,0.86183667,3303.0,3302.1,0.97865785]
[1768643790310,0.50858552,3303.2,3302.1,0.97865785]
[1768643790512,0.86184152,3303.1,3302.1,0.97865785]
[1768643790817,0.86184152,3303.0,3302.1,0.97865785]
[1768643791117,0.50858552,3303.2,3302.1,0.97865785]
[1768643791313,0.86184181,3303.1,3302.1,0.97865785]
[1768643791513,0.86184181,3303.0,3302.1,0.97865785]
[1768643791714,0.50858552,3303.2,3302.1,0.97865785]
[1768643791918,0.8618565,3303.1,3302.1,0.97865785]
[1768643792213,0.8618565,3303.0,3302.1,0.97865785]
[1768643792419,0.50858552,3303.2,3302.1,0.97865785]
[1768643792616,0.86187458,3303.1,3302.1,0.97865785]
[1768643792806,0.86187458,3303.0,3302.1,0.97865785]
[1768643793119,0.50858552,3303.2,3302.1,0.97865785]
[1768643793711,1.48724337,3303.2,3301.9,0.97865785]
[1768643796619,1.48724337,3303.2,3301.8,0.00275288]
[1768643796821,1.48724337,3303.2,3301.8,0.98141073]
[1768643799223,0.86206779,3303.1,3301.8,0.98141073]
[1768643799421,1.48724337,3303.2,3301.8,0.98141073]
[1768643799620,0.52169656,3303.0,3301.8,0.00275288]
[1768643799924,0.52169656,3303.0,3301.8,0.98141073]
[1768643813830,0.52169656,3303.0,3301.8,0.00275288]
[1768643817429,0.97865785,3302.8,3301.8,0.00275288]
[1768643817625,1.50035441,3303.0,3301.8,0.00275288]
[1768643817930,1.11968698,3302.9,3301.8,0.00275288]
[1768643818223,0.86213217,3302.8,3301.8,0.00275288]
[1768643818415,1.50035441,3303.0,3301.8,0.00275288]
[1768643818616,1.11955401,3302.9,3301.8,0.00275288]
[1768643818820,0.86203096,3302.8,3301.8,0.00275288]
[1768643819030,1.50035441,3303.0,3301.8,0.00275288]
[1768643819219,1.11955581,3302.9,3301.8,0.00275288]
[1768643819416,0.86203226,3302.8,3301.8,0.00275288]
[1768643819625,0.52169656,3303.0,3301.8,0.00275288]
[1768643819823,3.79210771,3302.9,3301.8,0.00275288]
[1768643820023,0.86195111,3302.8,3301.8,0.00275288]
[1768643820325,0.97865785,3302.4,3300.7,0.15153]
[1768643820529,0.97865785,3301.8,3300.7,0.15153]
[1768643820725,2.67265785,3301.8,3300.7,0.15153]
[1768643821029,1.694,3301.8,3300.7,0.15153]
[1768643821531,1.69710619,3301.8,3300.7,0.1540855]
[1768643822729,1.69710619,3301.8,3300.8,0.97865785]
[1768643823930,1.69710619,3301.8,3301.0,0.97865785]
[1768643824324,1.69710619,3301.8,3300.7,0.1540855]
[1768643824520,1.69710619,3301.8,3300.9,0.97865785]
[1768643825031,1.69710619,3301.8,3301.0,0.97865785]
[1768643827323,1.69710619,3301.8,3300.7,0.1540855]
[1768643827635,1.69710619,3301.8,3301.0,0.97865785]
[1768643831432,1.69710619,3301.8,3300.7,0.1540855]
[1768643838946,1.69710619,3301.8,3300.7,0.0025555]
[1768643840637,0.00310619,3301.8,3300.7,0.0025555]
[1768643843853,0.51366713,3301.8,3300.1,3.96976991]
[1768643844151,0.51366713,3301.8,3300.1,0.15156]
[1768643844847,0.51366713,3301.8,3300.1,0.00383593]
[1768643846552,0.51056094,3301.6,3300.1,0.00383593]
[1768643847651,1.694,3301.5,3300.1,0.98340172]
[1768643850346,2.20456094,3301.5,3300.1,0.00383593]
[1768643852053,0.51056094,3301.5,3300.1,0.00383593]
[1768643852253,1.429,3301.4,3300.1,0.00383593]
[1768643852755,2.20456094,3301.5,3300.1,0.00383593]
[1768643861761,0.50148883,3301.4,3299.7,0.94121137]
[1768643861953,0.00310619,3301.8,3300.5,0.97956579]
[1768643862354,1.37710619,3301.8,3300.5,0.97956579]
[1768643862868,1.37710619,3301.8,3300.5,0.00266581]
[1768643864064,1.87859502,3301.8,3300.5,0.00266581]
[1768643865665,0.50459502,3301.8,3300.5,0.00266581]
[1768643865862,2.07959502,3301.8,3300.5,0.00266581]
[1768643866165,0.50148883,3301.7,3300.5,0.00266581]
[1768643866569,0.50148883,3301.7,3300.5,0.94771311]
[1768643868266,0.50148883,3301.7,3300.5,0.00266581]
[1768643868570,0.50148883,3301.7,3300.5,0.94771311]
[1768643869266,0.50148883,3301.7,3300.5,0.00266581]
[1768643870060,0.50148883,3301.7,3300.6,0.9450473]
[1768643870366,0.86265041,3301.6,3300.6,0.9450473]
[1768643870571,0.50148883,3301.7,3300.6,0.9450473]
[1768643870869,0.8626504,3301.6,3300.6,0.9450473]
[1768643871163,0.50148883,3301.7,3300.6,0.9450473]
[1768643871371,0.86265008,3301.6,3300.6,0.9450473]
[1768643871667,0.50148883,3301.7,3300.6,0.9450473]
[1768643871867,0.86287526,3301.6,3300.6,0.9450473]
[1768643872068,0.50148883,3301.7,3300.7,0.9450473]
[1768643872268,0.86287541,3301.6,3300.6,0.9450473]
[1768643872567,0.50148883,3301.7,3300.6,0.9450473]
[1768643872766,0.86317305,3301.6,3300.6,0.9450473]
[1768643872971,0.50148883,3301.7,3300.6,0.9450473]
[1768643873172,0.86317305,3301.6,3300.6,0.9450473]
[1768643873357,0.86365582,3301.5,3300.6,0.9450473]
[1768643873569,0.86365582,3301.4,3300.6,0.9450473]
[1768643873766,0.86365582,3301.3,3300.6,0.9450473]
[1768643873968,0.50148883,3301.7,3300.6,0.9450473]
[1768643874165,0.86364753,3301.6,3300.7,0.9450473]
[1768643874467,0.86364753,3301.5,3300.6,0.9450473]
[1768643874773,0.86364753,3301.4,3300.6,0.9450473]
[1768643874969,0.86364753,3301.3,3300.7,0.9450473]
[1768643875170,0.50148883,3301.7,3300.6,0.9450473]
[1768643875470,1.12149413,3301.6,3300.6,0.9450473]
[1768643875773,0.86377648,3301.5,3300.7,0.9450473]
[1768643875969,0.86377648,3301.4,3300.6,0.9450473]
[1768643876172,0.86377648,3301.3,3300.6,0.9450473]
[1768643876362,0.50148883,3301.7,3300.7,0.9450473]
[1768643876562,0.86373423,3301.6,3300.6,0.9450473]
[1768643876762,0.86373423,3301.5,3300.6,0.9450473]
[1768643876974,0.86373423,3301.4,3300.7,0.9450473]
[1768643877165,0.86373423,3301.3,3300.6,0.9450473]
[1768643877473,0.50148883,3301.7,3300.6,0.9450473]
[1768643877770,1.12146214,3301.6,3300.7,0.9450473]
[1768643877964,0.86374131,3301.5,3300.6,0.9450473]
[1768643878165,0.86374131,3301.4,3300.6,0.9450473]
[1768643878364,0.86374131,3301.3,3300.7,0.9450473]
[1768643878564,0.86374131,3301.3,3300.5,0.00266581]
[1768643878565,0.50148883,3301.7,3300.6,0.9450473]
[1768643878779,1.12147058,3301.6,3300.6,0.9450473]
[1768643878957,0.86374771,3301.5,3300.7,0.9450473]
[1768643879157,0.86374771,3301.4,3300.6,0.9450473]
[1768643879371,0.86374771,3301.3,3300.6,0.9450473]
[1768643879573,0.50148883,3301.7,3300.7,0.9450473]
[1768643879872,1.12147361,3301.6,3300.6,0.9450473]
[1768643880071,0.86374999,3301.5,3300.6,0.9450473]
[1768643880273,0.86374999,3301.4,3300.7,0.9450473]
[1768643880460,0.86374999,3301.3,3300.6,0.9450473]
[1768643880659,3.53248883,3301.7,3300.7,0.9450473]
[1768643880874,1.12146801,3301.6,3300.6,0.9450473]
[1768643881075,0.86374571,3301.5,3300.5,0.00266581]
[1768643881277,0.86374571,3301.4,3300.6,0.9450473]
[1768643881472,0.86374571,3301.3,3300.6,0.9450473]
[1768643881674,3.53248883,3301.7,3300.7,0.9450473]
[1768643881872,3.53248883,3301.7,3300.5,0.00266581]
[1768643881873,1.12147283,3301.6,3300.5,0.00266581]
[1768643882076,0.86374935,3301.5,3300.5,0.00266581]
[1768643882273,0.86374935,3301.4,3300.5,0.00266581]
[1768643882479,0.86374935,3301.3,3300.5,0.00266581]
[1768643882778,3.53248883,3301.7,3300.7,0.9450473]
[1768643883075,1.12147686,3301.6,3300.7,0.9450473]
[1768643883279,0.86375239,3301.5,3300.8,0.9450473]
[1768643883574,3.53248883,3301.7,3300.7,0.9450473]
[1768643883782,1.12148167,3301.6,3300.7,0.9450473]
[1768643883971,0.86375602,3301.5,3300.8,0.9450473]
[1768643884270,3.53248883,3301.7,3300.7,0.9450473]
[1768643884474,1.1214868,3301.6,3300.7,0.9450473]
[1768643884777,0.86375989,3301.5,3300.8,0.9450473]
[1768643884980,3.53248883,3301.7,3300.7,0.9450473]
[1768643885164,1.12148659,3301.6,3300.7,0.9450473]
[1768643885368,3.53248883,3301.7,3300.5,0.00266581]
[1768643885369,1.12148787,3301.5,3300.8,0.9450473]
[1768643885580,3.53248883,3301.7,3300.7,0.9450473]
[1768643885780,1.12149181,3301.6,3300.7,0.9450473]
[1768643885976,1.12149181,3301.5,3300.8,0.9450473]
[1768643886289,3.53248883,3301.7,3300.7,0.9450473]
[1768643886480,1.12149753,3301.6,3300.7,0.9450473]
[1768643886673,1.12149753,3301.5,3300.8,0.9450473]
[1768643886874,3.53248883,3301.7,3300.7,0.9450473]
[1768643887171,1.12149753,3301.6,3300.7,0.9450473]
[1768643887374,1.12149753,3301.5,3300.8,0.9450473]
[1768643887575,3.53248883,3301.7,3300.7,0.9450473]
[1768643887784,1.121504,3301.6,3300.7,0.9450473]
[1768643887977,1.121504,3301.5,3300.8,0.9450473]
[1768643888177,3.53248883,3301.7,3300.7,0.9450473]
[1768643888378,1.1215117,3301.6,3300.7,0.9450473]
[1768643888579,1.1215117,3301.5,3300.8,0.9450473]
[1768643888782,1.1215117,3301.5,3300.5,0.00266581]
[1768643888783,3.53248883,3301.7,3300.7,0.9450473]
[1768643889084,1.12150981,3301.6,3300.7,0.9450473]
[1768643889283,1.12150981,3301.5,3300.8,0.9450473]
[1768643889469,3.53248883,3301.7,3300.7,0.9450473]
[1768643889775,1.1215159,3301.6,3300.7,0.9450473]
[1768643890067,1.1215159,3301.5,3300.8,0.9450473]
[1768643890274,3.53248883,3301.7,3300.7,0.9450473]
[1768643890586,1.12152304,3301.6,3300.7,0.9450473]
[1768643890776,1.12152304,3301.5,3300.8,0.9450473]
[1768643890981,3.53248883,3301.7,3300.7,0.9450473]
[1768643891274,1.12152229,3301.6,3300.7,0.9450473]
[1768643891475,1.12152229,3301.5,3300.8,0.9450473]
[1768643891674,3.53248883,3301.7,3300.7,0.9450473]
[1768643891974,1.12152899,3301.6,3300.7,0.9450473]
[1768643892174,1.12152899,3301.5,3300.8,0.9450473]
[1768643892373,3.53248883,3301.7,3300.7,0.9450473]
[1768643892574,1.1215889,3301.6,3300.7,0.9450473]
[1768643892774,1.1215889,3301.5,3300.8,0.9450473]
[1768643892975,3.53248883,3301.7,3300.7,0.9450473]
[1768643893175,1.1215889,3301.6,3300.7,0.9450473]
[1768643893488,1.1215889,3301.5,3300.9,0.9450473]
[1768643893789,1.1215889,3301.5,3300.5,0.00266581]
[1768643893790,0.257751,3301.4,3300.5,0.00266581]
[1768643893982,3.53248883,3301.7,3300.9,0.9450473]
[1768643894178,1.12165625,3301.6,3300.8,0.9450473]
[1768643894380,1.12165625,3301.5,3300.8,0.9450473]
[1768643894576,0.25776653,3301.4,3300.9,0.9450473]
[1768643894772,3.53248883,3301.7,3300.8,0.9450473]
[1768643895077,1.12173943,3301.6,3300.8,0.9450473]
[1768643895278,1.12173943,3301.5,3300.9,0.9450473]
[1768643895478,0.86395369,3301.4,3300.8,0.9450473]
[1768643895684,3.53248883,3301.7,3300.8,0.9450473]
[1768643895875,1.12189745,3301.6,3300.9,0.9450473]
[1768643896079,0.86407512,3301.5,3300.8,0.9450473]
[1768643896378,0.86407512,3301.4,3300.8,0.9450473]
[1768643896580,3.53248883,3301.7,3300.9,0.9450473]
[1768643896778,1.12189809,3301.6,3300.8,0.9450473]
[1768643896979,0.86407496,3301.5,3300.8,0.9450473]
[1768643897184,0.86407496,3301.4,3300.9,0.9450473]
[1768643897484,3.53248883,3301.7,3300.8,0.9450473]
[1768643897684,1.121905,3301.6,3300.8,0.9450473]
[1768643897981,0.86408009,3301.5,3300.9,0.9450473]
[1768643898182,0.86408009,3301.4,3300.8,0.9450473]
[1768643898377,3.53248883,3301.7,3300.8,0.9450473]
[1768643898582,1.12191402,3301.6,3300.5,0.00266581]
[1768643898782,0.86408677,3301.5,3300.8,0.9450473]
[1768643898983,0.86408677,3301.4,3300.8,0.9450473]
[1768643899185,3.53248883,3301.7,3300.9,0.9450473]
[1768643899379,1.1219149,3301.6,3300.8,0.9450473]
[1768643899580,0.86408745,3301.5,3300.8,0.9450473]
[1768643899780,0.86408745,3301.4,3300.5,0.00266581]
[1768643899981,3.53248883,3301.7,3300.8,0.9450473]
[1768643900281,1.12191757,3301.6,3300.8,0.9450473]
[1768643900481,0.86408934,3301.5,3301.0,0.9450473]
[1768643900682,0.86408934,3301.4,3300.8,0.9450473]
[1768643900880,3.53248883,3301.7,3300.8,0.9450473]
[1768643901080,1.121922,3301.6,3301.0,0.9450473]
[1768643901277,0.86409255,3301.5,3300.8,0.9450473]
[1768643901477,0.86409255,3301.4,3300.8,0.9450473]
[1768643901689,3.53248883,3301.7,3301.0,0.9450473]
[1768643901891,1.12192532,3301.6,3300.8,0.9450473]
[1768643902092,0.8640949,3301.5,3300.8,0.9450473]
[1768643902292,0.8640949,3301.4,3301.0,0.9450473]
[1768643902495,3.53248883,3301.7,3300.8,0.9450473]
[1768643902694,1.12193266,3301.6,3300.8,0.9450473]
[1768643902896,0.86410207,3301.5,3301.0,0.9450473]
[1768643903094,0.86410207,3301.4,3300.8,0.9450473]
[1768643903296,3.53248883,3301.7,3300.8,0.9450473]
[1768643903497,1.12194282,3301.6,3301.0,0.9450473]
[1768643903697,0.86411207,3301.5,3300.8,0.9450473]
[1768643903901,3.53248883,3301.7,3300.8,0.9450473]
[1768643904101,3.53248883,3301.7,3300.5,0.00266581]
[1768643904102,1.12194565,3301.6,3301.0,0.9450473]
[1768643904305,0.86411207,3301.5,3300.8,0.9450473]
[1768643904502,3.53248883,3301.7,3300.8,0.9450473]
[1768643904701,1.12195127,3301.6,3301.0,0.9450473]
[1768643904902,0.86411637,3301.5,3300.8,0.9450473]
[1768643905095,3.53248883,3301.7,3300.5,0.00266581]
[1768643905296,1.12195154,3301.6,3300.8,0.9450473]
[1768643905498,0.86411658,3301.5,3300.8,0.9450473]
[1768643905698,3.53248883,3301.7,3301.0,0.9450473]
[1768643905899,1.12195151,3301.6,3300.5,0.00266581]
[1768643906099,0.86411655,3301.5,3300.5,0.00266581]
[1768643906406,3.53248883,3301.7,3300.9,0.9450473]
[1768643906606,1.12173365,3301.6,3300.9,0.9450473]
[1768643906906,0.8638981,3301.5,3301.1,0.9450473]
[1768643907106,3.53248883,3301.7,3300.9,0.9450473]
[1768643907305,1.12173328,3301.6,3300.9,0.9450473]
[1768643907510,0.86389782,3301.5,3301.1,0.9450473]
[1768643907807,3.53248883,3301.7,3300.9,0.9450473]
[1768643908006,1.12173424,3301.6,3300.9,0.9450473]
[1768643908207,0.86389857,3301.5,3301.1,0.9450473]
[1768643908400,3.53248883,3301.7,3300.9,0.9450473]
[1768643908601,1.12173515,3301.6,3300.9,0.9450473]
[1768643908802,0.86389929,3301.5,3301.1,0.9450473]
[1768643909005,3.53248883,3301.7,3300.9,0.9450473]
[1768643909204,1.12173508,3301.6,3300.9,0.9450473]
[1768643909406,0.86389929,3301.5,3301.1,0.9450473]
[1768643909612,3.53248883,3301.7,3300.9,0.9450473]
[1768643909816,1.12173527,3301.6,3300.9,0.9450473]
[1768643910015,0.86389941,3301.5,3301.1,0.9450473]
[1768643910314,3.53248883,3301.7,3300.9,0.9450473]
[1768643910513,1.12173512,3301.6,3300.9,0.9450473]
[1768643910713,0.8638993,3301.5,3301.1,0.9450473]
[1768643911014,3.53248883,3301.7,3300.9,0.9450473]
[1768643911311,1.12173339,3301.6,3300.9,0.9450473]
[1768643911515,0.86389792,3301.5,3301.1,0.9450473]
[1768643911715,3.53248883,3301.7,3300.9,0.9450473]
[1768643911907,1.12173404,3301.6,3300.9,0.9450473]
[1768643912110,0.86389857,3301.5,3301.1,0.9450473]
[1768643912304,3.53248883,3301.7,3300.9,0.9450473]
[1768643912504,1.12173496,3301.6,3300.9,0.9450473]
[1768643912704,0.86389929,3301.5,3301.1,0.9450473]
[1768643913002,3.53248883,3301.7,3300.9,0.9450473]
[1768643913199,1.12173517,3301.6,3300.9,0.9450473]
[1768643913399,0.86389929,3301.5,3301.1,0.9450473]
[1768643913603,0.86389929,3301.4,3300.9,0.9450473]
[1768643913906,0.86390008,3301.3,3300.9,0.9450473]
[1768643914213,1.701,3301.2,3301.1,0.9450473]
[1768643914414,1.701,3301.2,3300.9,0.9450473]
[1768643914616,1.701,3301.2,3301.1,0.9450473]
[1768643916914,1.701,3301.2,3300.5,0.9824979]
[1768643917119,1.701,3301.2,3301.1,0.9450473]
[1768643922127,1.701,3301.2,3300.5,0.9824979]
[1768643922429,1.701,3301.2,3301.1,0.9450473]
[1768643927431,1.701,3301.2,3300.5,0.9824979]
[1768643927732,1.701,3301.2,3301.1,0.9450473]
[1768643929033,1.701,3301.2,3300.5,0.9824979]
[1768643929231,1.701,3301.2,3301.1,0.9450473]
[1768643931238,1.701,3301.2,3300.5,0.9824979]
[1768643931438,1.701,3301.2,3301.1,0.9450473]
[1768643933040,1.701,3301.2,3300.5,0.9824979]
[1768643933239,1.701,3301.2,3301.1,0.9450473]
[1768643933632,1.701,3301.2,3301.1,0.92398021]
[1768643933834,1.701,3301.2,3300.5,0.00266581]
[1768643934640,0.00310619,3301.8,3300.6,0.97983209]
[1768643934939,2.82474807,3301.7,3300.6,0.97983209]
[1768643935239,1.12174807,3301.6,3300.6,0.97983209]
[1768643935440,1.12174671,3301.5,3300.6,0.97983209]
[1768643935634,1.12174671,3301.4,3300.6,0.97983209]
[1768643935840,1.703,3301.7,3300.6,0.97983209]
[1768643936043,1.12174236,3301.6,3300.6,0.97983209]
[1768643936338,1.12174236,3301.5,3300.6,0.97983209]
[1768643936541,1.12174236,3301.4,3300.6,0.97983209]
[1768643936736,1.703,3301.7,3300.6,0.97983209]
[1768643936936,1.12189235,3301.6,3300.6,0.97983209]
[1768643937139,1.12189235,3301.5,3300.6,0.97983209]
[1768643937335,2.56705576,3301.4,3300.6,0.97983209]
[1768643937534,1.703,3301.4,3300.6,0.97983209]
[1768643944865,0.00310619,3301.8,3300.6,0.97983209]
[1768643945161,2.82474196,3301.7,3300.6,0.97983209]
[1768643945362,1.12174196,3301.6,3300.6,0.97983209]
[1768643945559,0.86394267,3301.5,3300.6,0.97983209]
[1768643945861,0.00310619,3301.8,3300.6,0.97983209]
[1768643946061,2.82473628,3301.7,3300.6,0.97983209]
[1768643946260,1.12173628,3301.6,3300.6,0.97983209]
[1768643946463,0.86393833,3301.5,3300.6,0.97983209]
[1768643946663,1.703,3301.7,3300.6,0.97983209]
[1768643946859,1.12171868,3301.6,3300.6,0.97983209]
[1768643947062,0.86392452,3301.5,3300.6,0.97983209]
[1768643947359,1.703,3301.7,3300.6,0.97983209]
[1768643947547,1.1217046,3301.6,3300.6,0.97983209]
[1768643947747,0.86391349,3301.5,3300.6,0.97983209]
[1768643947952,1.703,3301.6,3300.5,0.00266581]
[1768643948153,0.86391335,3301.5,3300.5,0.00266581]
[1768643948348,1.703,3301.6,3300.5,0.00266581]
[1768643948550,0.86391537,3301.5,3300.5,0.00266581]
[1768643948759,1.703,3301.6,3300.5,0.00266581]
[1768643948959,0.86391537,3301.5,3300.5,0.00266581]
[1768643949164,1.703,3301.6,3300.5,0.00266581]
[1768643949361,0.86391281,3301.5,3300.5,0.00266581]
[1768643949560,1.703,3301.6,3300.5,0.00266581]
[1768643949763,0.86392043,3301.5,3300.5,0.00266581]
[1768643949963,1.703,3301.6,3300.5,0.00266581]
[1768643950159,0.86392029,3301.5,3300.5,0.00266581]
[1768643950359,1.703,3301.6,3300.5,0.00266581]
[1768643950555,0.86391131,3301.5,3300.5,0.00266581]
[1768643950768,1.703,3301.6,3300.5,0.00266581]
[1768643950969,0.86391144,3301.5,3300.5,0.00266581]
[1768643951268,1.703,3301.6,3300.5,0.00266581]
[1768643951469,0.86390719,3301.5,3300.5,0.00266581]
[1768643951672,1.703,3301.6,3300.5,0.00266581]
[1768643951971,0.86390705,3301.5,3300.5,0.00266581]
[1768643952163,1.703,3301.6,3300.5,0.00266581]
[1768643952362,0.86390633,3301.5,3300.5,0.00266581]
[1768643952555,1.703,3301.6,3300.5,0.00266581]
[1768643952761,0.86390447,3301.5,3300.5,0.00266581]
[1768643952962,1.703,3301.6,3300.5,0.00266581]
[1768643953162,0.86390447,3301.5,3300.5,0.00266581]
[1768643953362,1.703,3301.6,3300.5,0.00266581]
[1768643953563,0.86390284,3301.5,3300.5,0.00266581]
[1768643953768,1.703,3301.6,3300.5,0.00266581]
[1768643954071,0.86390284,3301.5,3300.5,0.00266581]
[1768643954271,1.703,3301.6,3300.5,0.00266581]
[1768643954472,0.8639021,3301.5,3300.5,0.00266581]
[1768643954668,1.703,3301.6,3300.5,0.00266581]
[1768643954968,0.8639021,3301.5,3300.5,0.00266581]
[1768643955169,1.703,3301.6,3300.5,0.00266581]
[1768643955467,0.8639025,3301.5,3300.5,0.00266581]
[1768643955667,1.703,3301.6,3300.5,0.00266581]
[1768643955865,0.86390224,3301.5,3300.5,0.00266581]
[1768643956066,1.703,3301.6,3300.5,0.00266581]
[1768643956263,0.86390224,3301.5,3300.5,0.00266581]
[1768643956467,1.703,3301.6,3300.5,0.00266581]
[1768643956665,0.86390439,3301.5,3300.5,0.00266581]
[1768643956870,1.703,3301.6,3300.5,0.00266581]
[1768643957070,0.86390439,3301.5,3300.5,0.00266581]
[1768643957270,1.703,3301.6,3300.5,0.00266581]
[1768643957465,0.86390704,3301.5,3300.5,0.00266581]
[1768643957667,1.703,3301.6,3300.5,0.00266581]
[1768643957867,0.86390704,3301.5,3300.5,0.00266581]
[1768643958075,1.703,3301.6,3300.5,0.00266581]
[1768643958270,0.86390704,3301.5,3300.5,0.00266581]
[1768643958477,1.703,3301.6,3300.5,0.00266581]